Cogmind - Beta 13 @@@ ROGUE MODE // 2024.04.01 @ 06:08:47 Player: BrainTooSmol Result: Destroyed self with Grenade Launcher Performance ------------- Evolutions (0) 0 Regions Visited (3) 600 Robots Destroyed (24) 120 Value Destroyed (546) 546 Prototype IDs (2) 40 Alien Tech Used (0) 0 Bonus (-14) -14 TOTAL SCORE: 1292 Bonus ------- Friendly Fire -14 Cogmind --------- Core Integrity 0/250 Matter 277/300 Energy 249/250 System Corruption 0% Temperature Cool (0) Movement Walking (120) Location -10/Subcaves Parts ------- > --- POWER (1) -------- Ion Engine > --- PROPULSION (2) --- Carbon-fiber Leg Myomer Leg > --- UTILITY (2) ------ Medium Storage Unit Seismic Detector > --- WEAPON (2) ------- Assault Rifle Grenade Launcher > --- INVENTORY (10) --- Ion Engine Ion Engine Aluminum Leg Aluminum Leg Carbon-fiber Leg Signal Interpreter Authchip [Processor] Light Assault Rifle Light Assault Rifle Peak State ------------ > --- POWER ------------ Ion Engine > --- PROPULSION ------- Carbon-fiber Leg Myomer Leg > --- UTILITY ---------- Medium Storage Unit Seismic Detector > --- WEAPON ----------- Assault Rifle Grenade Launcher > --- INVENTORY -------- Ion Engine Ion Engine Aluminum Leg Aluminum Leg Aluminum Leg Signal Interpreter Authchip [Processor] Light Assault Rifle Light Assault Rifle [Rating: 16] Favorites ----------- Power Ion Engine Engine Ion Engine Propulsion Aluminum Leg Leg Aluminum Leg Utility Seismic Detector Device Seismic Detector Storage Medium Storage Unit Weapon Assault Rifle Ballistic Gun Assault Rifle Launcher Grenade Launcher Build | -11 -10 -10 -10 ------- Run | Yrd Mat Min Sub Slots Evolved . | . . . . Power . | . . . . Propulsion . | . . . . Utility . | . . . . Weapon . | . . . . Parts Attached 21 | 7 5 . 9 Power 2 | 1 1 . . Engine 2 | 1 1 . . Core . | . . . . Reactor . | . . . . Propulsion 6 | 2 2 . 2 Treads . | . . . . Leg 6 | 2 2 . 2 Wheel . | . . . . Hover . | . . . . Flight . | . . . . Utility 4 | 2 1 . 1 Device 2 | 1 . . 1 Storage 2 | 1 1 . . Processor . | . . . . Hackware . | . . . . Protection . | . . . . Artifact . | . . . . Weapon 9 | 2 1 . 6 Energy Gun . | . . . . Energy Cannon . | . . . . Ballistic Gun 6 | 2 1 . 3 Ballistic Cannon . | . . . . Launcher 3 | . . . 3 Special Weapon . | . . . . Impact Weapon . | . . . . Slashing Weapon . | . . . . Piercing Weapon . | . . . . Special Melee Weapon . | . . . . Unidentified Prototypes . | . . . . Parts Lost 1 | . . . 1 Power . | . . . . Propulsion . | . . . . Utility . | . . . . Weapon 1 | . . . 1 Highest Loss Streak 1 | . . . 1 To Critical Strikes . | . . . . Average Slot Usage (%) 98 | . 97 100 98 Engine 14 | . 14 14 14 Leg 27 | . 27 28 28 Device 14 | . 14 14 14 Storage 14 | . 14 14 14 Ballistic Gun 25 | . 26 28 10 Launcher 2 | . . . 16 Naked Turns . | . . . . Heaviest Build 22 | 14 19 19 22 Greatest Support 40 | 20 20 20 40 Greatest Overweight (x) 1 | . 1 . 1 Average Overweight (x) . | . . . . Largest Inventory Capacity 10 | 8 10 10 10 Average Capacity 9 | 6 9 10 10 Most Carried 10 | 4 10 10 10 Average Carried 8 | 2 6 10 9 Final Capacity 10 | 8 10 10 10 Final Carried 10 | 2 10 10 9 Class Distribution -------------------- 96% | Mutant 3% | Scavenger-Mutant Dominant Class ---------------- Mutant | -10/Materials Mutant | -10/Mines Mutant | -10/Subcaves Resources | -11 -10 -10 -10 ----------- Run | Yrd Mat Min Sub Matter Collected 758 | 124 335 45 254 Remotely . | . . . . Salvage Created 524 | 17 368 . 139 Parts 53 | 4 31 . 18 Haulers Intercepted 2 | . 2 . . Recyclers Shooed . | . . . . Parts Field Recycled . | . . . . Retrieved Matter . | . . . . Parts Self-Destructed 8 | . . . 8 Prevented . | . . . . Kills | -11 -10 -10 -10 ------- Run | Yrd Mat Min Sub Combat Hostiles Destroyed 20 | . 10 . 10 Guns 10 | . 10 . . AOE 10 | . . . 10 Classes Destroyed 6 | 1 4 . 1 Tunneler 1 | 1 . . . Hauler 2 | . 2 . . Watcher 1 | . 1 . . Swarmer 9 | . 6 . 3 Grunt 4 | . 4 . . Subdweller 7 | . . . 7 Best Kill Streak 5 | 1 3 . 5 Combat Bots Only 5 | . 3 . 5 Max Kills in Single Turn 3 | 1 1 . 3 Gunslinging . | . . . . Exploded 3 | . . . 3 Melee . | . . . . Uniques/NPCs Destroyed . | . . . . Combat | -11 -10 -10 -10 -------- Run | Yrd Mat Min Sub Hostile Shots Fired 80 | . 60 . 20 Missed 25 | . 21 . 4 Damage Taken 761 | . 398 . 363 Core 270 | . 136 . 134 Absorbed by Shields . | . . . . Core Remaining (%) 100 | 100 . . . Volleys Fired 63 | 2 46 . 15 Largest 2 | 2 2 . 2 Hottest 60 | 40 40 . 60 Shots Fired 118 | 4 92 . 22 Gun 100 | 4 92 . 4 Cannon . | . . . . Launcher 18 | . . . 18 Special . | . . . . Kinetic 100 | 4 92 . 4 Thermal . | . . . . Explosive 18 | . . . 18 Electromagnetic . | . . . . Robot Hit Streak 9 | 2 8 . 9 Robot Miss Streak 3 | 1 3 . 1 Penetration Max . | . . . . Secondary Targets . | . . . . Shots Hit Robots 67 | 2 53 . 12 Core Hits 40 | 1 21 . 18 Critical Kills . | . . . . Critical Parts Destroyed . | . . . . Critical Strikes . | . . . . Melee Attacks . | . . . . Impact . | . . . . Slashing . | . . . . Piercing . | . . . . Sneak Attacks . | . . . . Combat Hostiles . | . . . . Follow-up Attacks . | . . . . Damage Inflicted 1576 | 23 591 14 948 Guns 616 | 23 582 . 11 Cannons . | . . . . Explosions 937 | . . . 937 Melee . | . . . . Ramming 23 | . 9 14 . Kinetic 616 | 23 582 . 11 Thermal . | . . . . Explosive 937 | . . . 937 Electromagnetic . | . . . . Impact . | . . . . Slashing . | . . . . Piercing . | . . . . Highest Corruption . | . . . . Average Corruption . | . . . . Corruption Purged . | . . . . Corruption Blocked . | . . . . Overload Shots . | . . . . Overflow Damage . | . . . . Projectiles . | . . . . Explosions . | . . . . Melee . | . . . . Knockbacks . | . . . . Impact . | . . . . Kinetic . | . . . . Secondary . | . . . . Self-Inflicted Damage 52 | . . . 52 Shots 3 | . . . 3 Rammed . | . . . . Targets Rammed 2 | . 1 1 . Kicked 2 | . 1 1 . Crushed . | . . . . Highest Temperature 9 | . 9 . . Average Temperature 6 | . 6 . . Received Heat Transfer 147 | . 108 . 39 Siege Activations . | . . . . Robots Corrupted . | . . . . Combat Hostiles . | . . . . Parts Fried . | . . . . Impact Corruptions . | . . . . Robots Melted . | . . . . Combat Hostiles . | . . . . Parts Melted . | . . . . Heat Transferred . | . . . . Parts Sabotaged . | . . . . Parts Stolen . | . . . . Parts Stripped . | . . . . Power Chain Reactions . | . . . . Alert | -11 -10 -10 -10 ------- Run | Yrd Mat Min Sub Peak Influence 155 | 5 155 2 . Initial 3 | . 3 2 . Average 37 | 1 68 . . Maximum Alert Level . | . . . . Low Security (%) 100 | 100 100 100 . Level 1 . | . . . . Level 2 . | . . . . Level 3 . | . . . . Level 4 . | . . . . Level 5 . | . . . . High Security . | . . . . Max Security . | . . . . Squads Dispatched 3 | . 3 . . Investigation 1 | . 1 . . Extermination . | . . . . Reinforcement 2 | . 2 . . Assault . | . . . . Garrison . | . . . . Intercept . | . . . . Searches Triggered . | . . . . Construction Impeded . | . . . . Haulers Reinforced . | . . . . Active Scanning Responses . | . . . . Cargo Convoy Interrupts . | . . . . Stealth | -11 -10 -10 -10 --------- Run | Yrd Mat Min Sub Distress Signals 1 | . 1 . . Communications Jammed . | . . . . Distress Signals . | . . . . Times Spotted 36 | . 22 . 14 Peak Tracking Total 6 | . 4 . 6 Tactical Retreats 2 | . 2 . . Traps | -11 -10 -10 -10 ------- Run | Yrd Mat Min Sub Traps Triggered 3 | . 3 . . Indirectly . | . . . . Trap Hack Attempts . | . . . . Triggered . | . . . . Disarmed . | . . . . Reprogrammed . | . . . . Reused . | . . . . Traps Extracted . | . . . . Installed . | . . . . Triggered . | . . . . Machines | -11 -10 -10 -10 ---------- Run | Yrd Mat Min Sub Machines Disabled . | . . . . Max in Single Turn . | . . . . Machines Repaired . | . . . . Machines Dismantled . | . . . . Machines Sabotaged . | . . . . Overloaded Fab Kills . | . . . . Hacking | -11 -10 -10 -10 --------- Run | Yrd Mat Min Sub Machines Accessed 7 | . 7 . . Terminals 5 | . 5 . . Fabricators . | . . . . Repair Stations . | . . . . Recycling Units 2 | . 2 . . Scanalyzers . | . . . . Garrison Access . | . . . . Total Hacks 19 | . 19 . . Successful 15 | . 15 . . Failed 4 | . 4 . . Catastrophic . | . . . . Database Lockouts . | . . . . Manual 10 | . 10 . . Terminals 16 | . 16 . . Fabricators . | . . . . Repair Stations . | . . . . Recycling Units 3 | . 3 . . Scanalyzers . | . . . . Garrison Access . | . . . . Terminal Hacks 8 | . 8 . . Record 4 | . 4 . . Prototype ID Bank 1 | . 1 . . Branch Access Points 1 | . 1 . . Unreport Threat 1 | . 1 . . Zone Layout 1 | . 1 . . Fabricator Hacks . | . . . . Repair Station Hacks . | . . . . Recycling Unit Hacks 3 | . 3 . . Report Inventory 2 | . 2 . . Retrieve Components 1 | . 1 . . Scanalyzer . | . . . . Garrison Access Hacks . | . . . . Unauthorized Hacks 4 | . 4 . . Terminals 4 | . 4 . . Botnet 4 | . 4 . . Fabricators . | . . . . Repair Stations . | . . . . Recycling Units . | . . . . Scanalyzers . | . . . . Garrison Access . | . . . . Data Cores Recovered . | . . . . Used . | . . . . Hacking Detections 5 | . 5 . . Full Trace Events . | . . . . Feedback Events . | . . . . Feedback Blocked . | . . . . Robot Schematics Acquired . | . . . . Robots Built . | . . . . Authchips . | . . . . Time . | . . . . Total Robot Build Rating . | . . . . Part Schematics Acquired . | . . . . Parts Built . | . . . . Authchips . | . . . . Time . | . . . . Total Part Build Rating . | . . . . Parts Repaired . | . . . . Time . | . . . . Parts Recycled . | . . . . Recycled Matter . | . . . . Retrieved Matter . | . . . . Retrieved Components 4 | . 4 . . Parts Scanalyzed . | . . . . Part Schematics Acquired . | . . . . Parts Damaged . | . . . . Bothacking | -11 -10 -10 -10 ------------ Run | Yrd Mat Min Sub Used RIF Installer . | . . . . Robots Hacked . | . . . . Non-combat . | . . . . Combat . | . . . . Robot Hacks Applied . | . . . . Relay Couplers Released . | . . . . Fabnet Peak Effective % . | . . . . Robots Rewired . | . . . . Allies Hacked . | . . . . Hacks Repelled . | . . . . Allies | -11 -10 -10 -10 -------- Run | Yrd Mat Min Sub Total Allies . | . . . . Largest Group . | . . . . Highest-Rated Group . | . . . . Highest-Rated Ally . | . . . . Total Orders . | . . . . Ally Attacks . | . . . . Total Damage . | . . . . Kills . | . . . . Allies Corrupted . | . . . . Allies Melted . | . . . . Intel | -11 -10 -10 -10 ------- Run | Yrd Mat Min Sub Robot Analysis Total . | . . . . Derelict Logs Recovered 3 | . . 3 . Drone Launches . | . . . . Drone Recoveries . | . . . . Exploration | -11 -10 -10 -10 ------------- Run | Yrd Mat Min Sub Turns Passed 2962 | 69 1413 1129 351 Spaces Moved 1482 | 43 760 490 189 Core 7 | 7 . . . Treads . | . . . . Legs 1475 | 36 760 490 189 Wheels . | . . . . Hover . | . . . . Flight . | . . . . Fastest Speed 50 | 50 120 120 120 Average Speed 125 | 108 124 120 147 Slowest Speed 190 | 120 190 120 190 Overloaded Moves . | . . . . Propulsion Burnouts . | . . . . Robots Hopped . | . . . . Cave-ins Triggered . | . . . . Exploration Rate (%) 51 | 4 86 101 13 Regions Visited 3 Branch Regions 2 Pre-discovered Areas 3 | . . 3 . Known Exits Taken 1 | . 1 . . Unknown Exits Taken 2 | 1 . 1 . Scrap Searched 3 | . . 3 . Spaces Dug 10 | . . . 10 Terrain Destroyed 67 | . . . 67 Melee . | . . . . Projectile . | . . . . AOE 67 | . . . 67 Terrain Rammed . | . . . . Walls Destroyed . | . . . . Machines Disabled . | . . . . Actions | -11 -10 -10 -10 --------- Run | Yrd Mat Min Sub Total 2481 | 61 1147 1031 242 Wait 882 | 1 318 541 22 Move 1479 | 42 759 489 189 Hop . | . . . . Pick Up 25 | 9 13 . 3 Fast Attach 2 | . 1 . 1 Attach 11 | 7 1 . 3 Detach . | . . . . Swap 8 | . 3 . 5 Drop 9 | . 5 . 4 Fire 63 | 2 46 . 15 Melee . | . . . . Ram . | . . . . Kick 2 | . 1 1 . Crush . | . . . . Escape Stasis . | . . . . Rewire . | . . . . Trap . | . . . . Miscellaneous . | . . . . Route ------- -11/Scrapyard -10/Materials (discovered 3 exits: [*Mat x2] / *Min) -10/Mines (discovered 3 exits: [*Mat x2] / [*Sub]) -10/Subcaves History --------- Turn | Location | Event 17 | -11/Scrapyard | Discovered new exit (range 16) 70 | -11/Scrapyard | Entered Materials 224 | -10/Materials | Identified exit to Mines 300 | -10/Materials | Build established: Mutant 935 | -10/Materials | Discovered new exit (range 16) 1030 | -10/Materials | Core integrity fell below 50% 1213 | -10/Materials | Discovered new exit (range 16) 1483 | -10/Materials | Entered Mines 1545 | -10/Mines | Discovered new exit (range 10) 1557 | -10/Mines | Met a Derelict bent on vengeance 1602 | -10/Mines | Learned 2 Materials zone layouts 1612 | -10/Mines | Learned location of Zion (-7) 2589 | -10/Mines | Discovered new exit (range 6) 2591 | -10/Mines | Learned location of Storage (-8) 2602 | -10/Mines | Discovered new exit (range 9) 2612 | -10/Mines | Entered Subcaves 2703 | -10/Subcaves | Ambushed by Subdweller buried in earth 2805 | -10/Subcaves | Ambushed by swarm of Subdwellers 2808 | -10/Subcaves | Ambushed by Subdwellers from Twisted Machinery 2848 | -10/Subcaves | Core integrity fell below 20% 2849 | -10/Subcaves | Lost 4 allies 2947 | -10/Subcaves | Shifting Twisted Machinery released Battle Rifle 2963 | -10/Subcaves | Destroyed self with Grenade Launcher Last Messages --------------- to Scrap Shield. 02850_ The unstable cave ceiling collapses. 02852_ LW-DJ9(R) destroyed. 02858_ The unstable cave ceiling collapses. 02859_ Acquired 15 matter. 02862_ The unstable cave ceiling collapses. 02865_ Sub. Machine Gun crushed. 02873_ The unstable cave ceiling collapses. 02874_ Dropped Aluminum Leg. 02875_ Acquired Myomer Leg. 02878_ Acquired 64 matter. 02880_ Acquired 58 matter. 02881_ Acquired 60 matter. 02887_ Dropped Aluminum Leg. 02888_ Acquired Carbon-fiber Leg. 02891_ Dropped Aluminum Leg. 02892_ Acquired Carbon-fiber Leg. 02904_ The unstable cave ceiling collapses. Battle Rifle falls loose from the Twisted Machinery. Map ----- +----------------------------------------------------+ | ?????????????????????????????????????????????????? | | ?????????????????????????????????????????????????? | | ?????????????????????????????????????????????????? | | ?????????????????????????????????????????????????? | | ?????????????????????????????????????????????????? | | ?????????????????????????????????????????????????? | | ?????????????????????????????????????????????????? | | ?????????????????????????????????????????????????? | | ?????????????????????????????????????????????????? | | ???######????????????????????????????????????????? | | ???# #????????????????????????????????????????? | | ???## ?????????????????????????????????????????? | | ???# ##???????####?????????????????????????????? | | ?###" "###?##### ##????????????????????????????? | | ## " ### ## #????????????????????????????? | | #????????????????????????????? | | ## ########??????????????????????? | | ### ## ###????????????????????? | | ##?## ##???????????????????? | | ## ##??# #???????????????????? | | #?## ### #???????????????????? | | ### ##?# "" ##?"?????????????????? | | [ ## ##??# """##""?????????????????? | | ##& = #### #####""" """""?????????????????? | | # & & ##?# # "## """"""" ????????????????? | | # # # #?# # ##" @ """"""????????????????? | | # # # #?## ## ###"" ## """????????????????? | | #= #?## # #?## #??""""???????????????? | | ## ## ### ##???#????????????????? | | % ## #????????????????????? | | ## # ##"" ## ## ""R ##????????????????????? | | ####### ######### [ ###?????????????????????? | | #????# ##???????#######???????????????????????? | | " #????# ???????????????????????????????????????? | | "##???# ????????????????????????????????????????? | | "#????##?????????????????????????????????????????? | | "#??????????????????????????????????????????????? | | ""#??????????????????????????????????????????????? | | ""#??????????????????????????????????????????????? | | ?????????????????????????????????????????????????? | | ?????????????????????????????????????????????????? | | ?????????????????????????????????????????????????? | | ?????????????????????????????????????????????????? | | ?????????????????????????????????????????????????? | | ?????????????????????????????????????????????????? | | ?????????????????????????????????????????????????? | | ?????????????????????????????????????????????????? | | ?????????????????????????????????????????????????? | | ?????????????????????????????????????????????????? | | ?????????????????????????????????????????????????? | +----------------------------------------------------+ Best States ------------- Heat Dissipation 25 Energy Generation 10 Energy Capacity 250 Matter Stores 300 Matter Capacity 300 Sight Range 16 Terrain Scan Density 10 Evasion (%) 55 Authchip Count 1 Item Schematics ----------------- None Robot Schematics ------------------ None Fabricated ------------ Nothing Alien Tech Used ----------------- None Achievements -------------- None Challenges ------------ None Game ------ Seed SigixSigixSpecial Manual? 0 Play Time 00:31:28 Cumulative 6.2 hours Start 2024.04.01 @ 03:26:54 End 2024.04.01 @ 06:08:47 Sessions 1 Manual Loads 0 Difficulty Rogue Special Mode None Game No. 3 Rogue 3 Adventurer 0 Explorer 0 Win Type - Total 1 Types 1/0/0/0/0/0/0/0/0 Lore% 1 Gallery% 10 Achievement% 13 Wizard Run 0 Options --------- Layout 1 ASCII 0 Keyboard 0 Movement Mouse Keybinds 0 Fullscreen 1 Font 24/Smallcaps Map View 50x35 Zoom Use 0% Tactical HUD 1 Map Filters NONE Filters NONE Steam 1 RUN: a9f08164-e240-4570-ad39-15b677d020c3